bitfinex/quotes_SOLUSD_20220103
["timestamp","ask_amount","ask_price","bid_price","bid_amount"]
[1641246616240,8.8348,169.84,169.7,9.06]
[1641246616440,8.8348,169.84,169.7,9.825]
[1641246616842,17.3948,169.84,169.71,2.7448462]
[1641246620048,17.3948,169.84,169.72,1.3016]
[1641246620248,17.3948,169.84,169.72,33.6954]
[1641246621049,17.3948,169.84,169.72,24.8586]
[1641246621857,17.3948,169.84,169.69,1.2425]
[1641246622668,1.2347,169.83,169.69,1.2425]
[1641246622867,8.8387,169.77,169.7,27.08530837]
[1641246623766,8.8387,169.77,169.7,2.95166184]
[1641246624377,8.8387,169.77,169.69,1.2425]
[1641246624569,8.8387,169.77,169.63,9.98669368]
[1641246624770,17.3987,169.77,169.64,23.3099]
[1641246624968,17.3987,169.77,169.61,27.87294874]
[1641246625172,18.82539368,169.77,169.61,27.87294874]
[1641246625592,18.82539368,169.77,169.61,30.08835376]
[1641246625794,17.3987,169.77,169.61,30.08835376]
[1641246626398,41.4062,169.77,169.61,30.08835376]
[1641246627011,41.9062,169.77,169.62,23.5888]
[1641246627202,41.9062,169.77,169.62,32.4305]
[1641246627404,41.9062,169.77,169.62,32.9305]
[1641246627603,41.9062,169.77,169.64,2.85530633]
[1641246627808,41.9062,169.77,169.65,23.9357]
[1641246628203,41.9062,169.77,169.65,24.4357]
[1641246630804,41.9062,169.77,169.65,33.2761]
[1641246631007,41.4062,169.77,169.65,33.2761]
[1641246632007,41.4062,169.77,169.65,34.5527]
[1641246633212,32.8462,169.77,169.65,43.1127]
[1641246633814,8.8387,169.77,169.65,43.1127]
[1641246637139,16.1587,169.77,169.65,24.4357]
[1641246637339,8.8427,169.7,169.61,27.87294874]
[1641246637739,8.8427,169.7,169.61,28.37294874]
[1641246638341,8.8427,169.7,169.62,2.79655503]
[1641246640142,8.8427,169.7,169.62,3.29655503]
[1641246641348,8.8427,169.7,169.62,2.79655503]
[1641246641746,8.8427,169.7,169.62,3.29655503]
[1641246642753,8.8427,169.7,169.62,2.79655503]
[1641246643151,8.8427,169.7,169.6,1.3303]
[1641246643353,8.8427,169.7,169.6,1.8303]
[1641246643950,9.3427,169.7,169.6,1.3303]
[1641246644151,9.3427,169.7,169.6,4.06199644]
[1641246645453,12.29635299,169.69,169.6,4.56199644]
[1641246645653,8.8439,169.66,169.6,4.56199644]
[1641246645856,12.29635299,169.69,169.6,4.56199644]
[1641246646455,0.5,169.7,169.6,4.56199644]
[1641246646654,8.8434,169.67,169.6,4.56199644]
[1641246646854,8.8434,169.67,169.6,13.40509644]
[1641246648857,8.8429,169.68,169.6,13.40509644]
[1641246652562,8.8429,169.68,169.6,13.66509644]
[1641246655767,8.8423,169.69,169.6,13.66509644]
[1641246655968,9.1023,169.69,169.6,13.66509644]
[1641246657771,9.1023,169.69,169.6,4.56199644]
[1641246659468,9.6023,169.69,169.6,4.56199644]
[1641246659869,9.6023,169.69,169.6,4.82199644]
[1641246660670,9.1023,169.69,169.6,4.82199644]
[1641246661669,9.1023,169.69,169.6,13.66509644]
[1641246661869,23.4866,169.71,169.6,13.66509644]
[1641246662069,8.8418,169.7,169.6,13.66509644]
[1641246663069,9.1018,169.7,169.6,13.66509644]
[1641246669876,8.8418,169.7,169.6,13.66509644]
[1641246670478,9.1018,169.7,169.6,13.66509644]
[1641246671485,9.1018,169.7,169.6,13.40509644]
[1641246672982,9.1018,169.7,169.6,13.66509644]
[1641246673582,9.1018,169.7,169.6,4.56199644]
[1641246675987,9.6018,169.7,169.6,4.56199644]
[1641246676792,14.7828,169.7,169.6,1.8303]
[1641246676989,24.76949368,169.7,169.59,22.9937]
[1641246677193,24.76949368,169.7,169.55,78.54451431]
[1641246677390,24.76949368,169.7,169.56,23.8652]
[1641246677593,24.76949368,169.7,169.56,32.7105]
[1641246677795,24.76949368,169.7,169.56,23.8652]
[1641246677992,1.3066,169.69,169.56,23.8652]
[1641246678211,8.8458,169.63,169.56,23.8652]
[1641246678411,13.9108,169.63,169.54,23.939]
[1641246678611,13.9108,169.63,169.51,1.2421]
[1641246678612,14.1708,169.63,169.52,6.15489509]
[1641246679013,14.6708,169.63,169.52,6.15489509]
[1641246679212,14.6708,169.63,169.52,9.06691733]
[1641246679415,14.6708,169.63,169.52,3.41202224]
[1641246679613,23.2308,169.63,169.52,3.41202224]
[1641246680613,1.42669368,169.62,169.52,3.41202224]
[1641246680814,1.92669368,169.62,169.51,24.2625]
[1641246681014,8.8495,169.57,169.51,24.2625]
[1641246681414,9.1095,169.57,169.47,25.2606]
[1641246681617,9.1095,169.57,169.47,51.1563]
[1641246681815,9.1095,169.57,169.47,53.8478684]
[1641246683015,9.1095,169.57,169.47,54.1078684]
[1641246683619,9.1095,169.57,169.46,8.8498]
[1641246683818,9.1095,169.57,169.42,41.79913357]
[1641246683819,1.42669368,169.56,169.42,12.29893357]
[1641246684016,8.8537,169.49,169.41,24.8202]
[1641246684416,9.1137,169.49,169.41,24.8202]
[1641246684619,9.1137,169.49,169.41,27.73941304]
[1641246684817,14.4647,169.49,169.41,25.3202]
[1641246685418,14.4647,169.49,169.41,0.5]
[1641246685817,14.4647,169.49,169.4,4.80998553]
[1641246686019,14.4647,169.49,169.4,4.30998553]
[1641246686219,14.4647,169.49,169.4,4.80998553]
[1641246686618,9.1137,169.49,169.4,4.80998553]
[1641246687721,9.1137,169.49,169.4,5.06998553]
[1641246688721,9.1137,169.49,169.4,13.92288553]
[1641246690927,9.1137,169.49,169.4,5.06998553]
[1641246692229,9.1137,169.49,169.4,4.80998553]
[1641246693627,9.1137,169.49,169.4,5.06998553]
[1641246693826,9.1137,169.49,169.4,4.80998553]
[1641246695127,9.1137,169.49,169.4,5.06998553]
[1641246700030,94.58122036,169.51,169.4,13.92298553]
[1641246700232,73.4296,169.51,169.4,13.92298553]
[1641246700429,73.4296,169.51,169.41,8.56]
[1641246700830,73.4296,169.51,169.41,9.32]
[1641246701630,73.4296,169.51,169.44,8.851]
[1641246701828,73.4296,169.51,169.44,0.5]
[1641246702029,73.4296,169.51,169.44,24.71314858]
[1641246702629,73.4296,169.51,169.44,0.76]
[1641246702831,73.4296,169.51,169.43,9.3516]
[1641246703831,82.2817,169.51,169.43,0.5]
[1641246704032,82.2817,169.51,169.42,25.4511]
[1641246704230,82.2817,169.51,169.42,34.2711]
[1641246704831,73.4296,169.51,169.42,34.2711]
[1641246705032,73.4296,169.51,169.42,43.1231]
[1641246705436,79.1606,169.51,169.42,34.2711]
[1641246705631,79.1606,169.51,169.42,9.32]
[1641246706031,79.1606,169.51,169.42,9.06]
[1641246706633,88.0128,169.51,169.42,9.06]
[1641246707437,88.0128,169.51,169.42,8.82]
[1641246708533,88.0128,169.51,169.42,9.32]
[1641246709034,82.5418,169.51,169.42,9.32]
[1641246709435,82.5418,169.51,169.42,0.76]
[1641246709834,82.5418,169.51,169.41,25.6971]
[1641246712736,82.2818,169.51,169.41,25.6971]
[1641246713337,82.2818,169.51,169.41,34.5499]
[1641246714138,82.2818,169.51,169.41,25.6971]
[1641246714540,82.5418,169.51,169.41,25.6971]
[1641246715339,83.0418,169.51,169.41,0.5]
[1641246715539,100.568,169.51,169.35,18.47321641]
[1641246715744,23.1348,169.5,169.35,25.6495]
[1641246715940,8.8558,169.44,169.35,1.3091]
[1641246716344,9.1158,169.44,169.35,1.3091]
[1641246716540,9.1158,169.44,169.36,2.57467151]
[1641246716940,57.66899368,169.5,169.36,3.07467151]
[1641246717147,57.92899368,169.5,169.36,3.07467151]
[1641246717540,8.8554,169.45,169.36,3.33467151]
[1641246717939,9.1154,169.45,169.36,3.33467151]
[1641246718643,8.8554,169.45,169.36,12.19007151]
[1641246718843,8.8542,169.47,169.36,12.19007151]
[1641246719042,9.1142,169.47,169.37,24.3292]
[1641246719474,8.8542,169.47,169.37,25.0892]
[1641246719872,8.8542,169.47,169.4,8.8534]
[1641246720072,8.8542,169.47,169.4,9.1134]
[1641246720272,8.8542,169.47,169.4,9.6134]
[1641246720675,8.8542,169.47,169.4,9.3534]
[1641246720873,9.1142,169.47,169.4,0.5]
[1641246721071,9.1142,169.47,169.38,1.3424]
[1641246721072,9.1142,169.47,169.38,1.8424]
[1641246721271,9.1142,169.47,169.38,1.3424]
[1641246721474,9.1142,169.47,169.38,10.6968]
[1641246722072,9.1142,169.47,169.38,10.9568]
[1641246724076,8.8542,169.47,169.38,10.9568]
[1641246724276,8.8532,169.48,169.38,12.38349368]
[1641246733289,8.8529,169.49,169.38,12.38349368]
[1641246733485,8.8529,169.49,169.41,8.8529]
[1641246733689,8.8529,169.49,169.42,2.30796615]
[1641246733986,73.4296,169.51,169.42,3.06796615]
[1641246734787,1.2461,169.55,169.42,3.06796615]
[1641246734987,8.8512,169.53,169.44,8.8507]
[1641246735187,8.8512,169.53,169.45,23.5707]
[1641246735388,9.1112,169.53,169.45,24.0707]
[1641246735591,9.1112,169.53,169.45,24.3307]
[1641246739390,8.8512,169.53,169.45,24.3307]
[1641246742296,35.95840664,169.6,169.45,33.1805]
[1641246742500,8.8481,169.56,169.46,8.56]
[1641246742696,115.34210664,169.6,169.46,9.9168]
[1641246742900,115.34210664,169.6,169.47,26.42409368]
[1641246742901,103.025,169.6,169.47,26.42409368]
[1641246743098,103.025,169.6,169.48,2.55539239]
[1641246743300,103.025,169.6,169.49,23.8666]
[1641246743501,103.025,169.6,169.49,24.1266]
[1641246743701,103.285,169.6,169.49,24.6266]
[1641246743899,103.285,169.6,169.49,25.8546]
[1641246744702,8.8471,169.58,169.51,8.8471]
[1641246744901,8.8471,169.58,169.51,9.3471]
[1641246745103,8.8471,169.58,169.51,9.6071]
[1641246745923,8.8471,169.58,169.51,38.89090016]
[1641246748023,8.8471,169.58,169.51,9.6071]
[1641246751628,103.025,169.6,169.51,9.6071]
[1641246751830,88.2302,169.6,169.51,9.6071]
[1641246752228,88.2302,169.6,169.51,11.03379368]
[1641246752427,8.8465,169.6,169.51,11.03379368]
[1641246752628,9.8417,169.65,169.51,11.03379368]
[1641246752827,8.8455,169.61,169.54,8.3453]
[1641246753027,8.8455,169.61,169.55,2.50608159]
[1641246753527,8.8455,169.61,169.55,3.26608159]
[1641246754128,8.845,169.62,169.55,12.11108159]
[1641246754929,23.5823,169.64,169.55,12.11108159]
[1641246755129,23.5823,169.64,169.55,34.94008159]
[1641246755531,23.8423,169.64,169.55,26.09508159]
[1641246755938,23.5823,169.64,169.55,26.09508159]
[1641246756235,8.8455,169.61,169.55,26.09508159]
[1641246756636,23.5823,169.64,169.55,34.94028159]
[1641246757438,78.734,169.65,169.55,34.94028159]
[1641246757637,8.8443,169.64,169.55,34.94028159]
[1641246759842,8.8443,169.64,169.55,23.329]
[1641246760141,15.0013,169.64,169.52,8.56]
[1641246760341,39.2534,169.64,169.52,8.56]
[1641246760741,39.2534,169.64,169.53,2.33017121]
[1641246761344,39.2534,169.64,169.53,3.09017121]
[1641246763246,39.2534,169.64,169.53,0.76]
[1641246763444,39.2534,169.64,169.51,25.1953]
[1641246763644,39.2534,169.64,169.51,23.8854]
[1641246764447,39.2534,169.64,169.52,2.69083871]
[1641246764846,39.2534,169.64,169.52,3.45083871]
[1641246766250,38.9934,169.64,169.52,12.29743871]
[1641246766446,38.9934,169.64,169.52,13.72413239]
[1641246766650,33.0964,169.64,169.52,14.99053239]
[1641246767247,32.5964,169.64,169.52,14.99053239]
[1641246769652,32.5964,169.64,169.52,13.56383871]
[1641246769851,33.3564,169.64,169.52,3.19083871]
[1641246772681,33.3564,169.64,169.52,0.5]
[1641246772884,33.3564,169.64,169.5,10.2864]
[1641246773080,33.3564,169.64,169.5,34.2356]
[1641246773480,33.3564,169.64,169.5,34.4956]
[1641246773681,1.2483,169.63,169.51,2.29137955]
[1641246773881,8.8484,169.57,169.51,2.79137955]
[1641246774082,8.8484,169.57,169.51,3.05137955]
[1641246776684,8.8484,169.57,169.51,0.76]
[1641246776885,8.8484,169.57,169.48,8.849]
[1641246777087,9.1084,169.57,169.44,25.2242]
[1641246777285,1.3542,169.56,169.44,25.2242]
[1641246777586,8.8515,169.5,169.44,25.2242]
[1641246777786,14.2515,169.5,169.44,1.2723]
[1641246778286,14.2515,169.5,169.43,26.92858299]
[1641246778490,14.5115,169.5,169.41,1.42669368]
[1641246778685,14.5115,169.5,169.4,93.7]
[1641246778885,15.0115,169.5,169.4,93.7]
[1641246779086,14.5115,169.5,169.4,93.7]
[1641246779285,15.0115,169.5,169.4,93.7]
[1641246779487,15.0115,169.5,169.41,2.95122991]
[1641246779891,9.6115,169.5,169.41,2.95122991]
[1641246780490,9.3515,169.5,169.41,2.95122991]
[1641246780691,9.3515,169.5,169.41,3.21122991]
[1641246781896,9.3515,169.5,169.41,2.95122991]
[1641246782094,9.6115,169.5,169.41,2.95122991]
[1641246783294,9.6115,169.5,169.41,3.21122991]
[1641246783498,9.1115,169.5,169.41,3.21122991]
[1641246783994,9.6115,169.5,169.41,3.21122991]
[1641246784401,9.1115,169.5,169.41,3.21122991]
[1641246784597,8.8515,169.5,169.41,3.71122991]
[1641246784799,8.8515,169.5,169.41,5.13792359]
[1641246785999,8.8515,169.5,169.41,13.99052359]
[1641246788800,8.8515,169.5,169.42,26.14807443]
[1641246789001,8.8515,169.5,169.42,35.25997443]
[1641246789201,8.8515,169.5,169.42,37.18666811]
[1641246790507,8.8515,169.5,169.42,11.03859368]
[1641246791332,38.18622259,169.55,169.43,8.56]
[1641246791531,1.3114,169.55,169.47,8.8492]
[1641246791731,1.3114,169.55,169.48,2.77010708]
[1641246791930,32.3487,169.6,169.48,2.77010708]
[1641246791931,32.3487,169.6,169.48,3.27010708]
[1641246792133,32.3487,169.6,169.48,3.53010708]
[1641246792332,8.8497,169.54,169.48,3.53010708]
[1641246794436,8.8497,169.54,169.48,3.27010708]
[1641246795037,53.2833,169.6,169.48,20.93930708]
[1641246795240,29.4946,169.6,169.48,20.93930708]
[1641246795637,29.7546,169.6,169.48,20.93930708]
[1641246795837,29.7546,169.6,169.49,24.8761]
[1641246796037,8.8483,169.57,169.5,8.8483]
[1641246796538,8.8483,169.57,169.5,9.6083]
[1641246799239,8.8475,169.58,169.5,41.23460228]
[1641246799440,101.2247,169.61,169.5,41.23460228]
[1641246799642,101.2247,169.61,169.53,8.8463]
[1641246799843,8.56,169.65,169.53,0.5]
[1641246800044,2.89591457,169.66,169.54,2.78403651]
[1641246800245,1.57911457,169.66,169.54,11.34403651]
[1641246800443,8.8446,169.65,169.54,12.10403651]
[1641246800942,8.8446,169.65,169.58,8.8437]
[1641246801342,8.8446,169.65,169.58,9.6037]
[1641246804548,77.5195,169.67,169.58,9.6037]
[1641246804747,77.5195,169.67,169.58,18.1637]
[1641246804953,77.5195,169.67,169.58,19.59039368]
[1641246805151,1.57911457,169.7,169.58,19.59039368]
[1641246805352,426.98180586,169.72,169.59,24.2601]
[1641246805651,8.8418,169.71,169.63,8.8412]
[1641246805854,8.8418,169.71,169.63,9.3412]
[1641246806052,9.1018,169.71,169.63,9.6012]
[1641246806851,9.1018,169.71,169.63,0.76]
[1641246807055,9.1018,169.71,169.59,25.5416]
[1641246807252,9.1018,169.71,169.59,32.8201]
[1641246807453,9.1018,169.71,169.59,33.5801]
[1641246807854,9.1018,169.71,169.6,2.81924519]
[1641246808253,9.1018,169.71,169.6,3.31924519]
[1641246808652,9.1018,169.71,169.6,12.16184519]
[1641246809055,9.1018,169.71,169.6,12.42184519]
[1641246810858,9.6018,169.71,169.6,3.57924519]
[1641246811257,9.6018,169.71,169.6,3.07924519]
[1641246811556,9.6018,169.71,169.59,24.2601]
[1641246811756,42.3457,169.71,169.55,1.42669368]
[1641246811957,42.3457,169.71,169.58,0.26]
[1641246812457,42.3457,169.71,169.55,25.66949368]
[1641246812656,8.8451,169.64,169.56,11.3704176]
[1641246812859,8.8451,169.64,169.56,11.8704176]
[1641246813056,8.8451,169.64,169.56,12.1304176]
[1641246822502,8.8445,169.65,169.56,12.1304176]
[1641246822901,9.1045,169.65,169.56,12.1304176]
[1641246823400,9.1045,169.65,169.56,13.3994176]
[1641246825504,8.8439,169.66,169.56,21.9594176]
[1641246825706,75.3492,169.67,169.57,24.0581]
[1641246825905,75.3492,169.67,169.62,8.842]
[1641246826107,1.3227,169.71,169.63,2.74355037]
[1641246826408,1.3227,169.71,169.63,27.45995037]
[1641246826606,1.3227,169.71,169.63,27.71995037]
[1641246826907,8.8418,169.7,169.63,27.71995037]
[1641246828206,8.8418,169.7,169.63,3.50355037]
[1641246828908,8.8418,169.7,169.63,3.00355037]
[1641246829107,8.8418,169.7,169.63,0.26]
[1641246829308,8.8418,169.7,169.63,0.76]
[1641246829507,8.8418,169.7,169.63,0.5]
[1641246830010,8.8418,169.7,169.61,10.8603]
[1641246830508,8.8418,169.7,169.61,13.77818469]
[1641246831110,8.8418,169.7,169.61,0.5]
[1641246831311,14.5698,169.7,169.61,0.5]
[1641246831515,8.844,169.66,169.59,0.5]
[1641246831812,8.844,169.66,169.56,23.3152]
[1641246832012,9.104,169.66,169.56,22.8152]
[1641246832211,9.104,169.66,169.57,2.97800482]
[1641246832412,9.104,169.66,169.57,12.32260482]
[1641246832615,9.104,169.66,169.57,12.58260482]
[1641246832812,9.104,169.66,169.57,3.73800482]
[1641246833310,9.104,169.66,169.57,5.1646985]
[1641246833512,9.104,169.66,169.57,4.9046985]
[1641246833712,9.104,169.66,169.57,3.47800482]
[1641246834412,9.104,169.66,169.57,0.5]
[1641246834611,9.104,169.66,169.56,23.3152]
[1641246834911,9.604,169.66,169.56,0.5]
[1641246835111,9.104,169.66,169.55,1.7981]
[1641246835311,9.604,169.66,169.55,1.2981]
[1641246835513,9.104,169.66,169.56,2.775035]
[1641246835712,9.604,169.66,169.56,2.775035]
[1641246835914,9.604,169.66,169.56,3.535035]
[1641246837115,9.104,169.66,169.56,3.535035]
[1641246838716,9.104,169.66,169.56,12.380235]
[1641246840521,9.104,169.66,169.56,3.535035]
[1641246841020,10.1625,169.68,169.56,3.535035]
[1641246841223,1.57911457,169.7,169.57,32.785]
[1641246841423,1.57911457,169.7,169.58,1.2523]
[1641246841622,1.57911457,169.7,169.6,34.54316304]
[1641246841826,1.57911457,169.7,169.6,43.60316304]
[1641246842024,1.2843,169.72,169.6,43.86316304]
[1641246842225,8.8422,169.71,169.62,2.31436575]
[1641246842424,8.8422,169.71,169.62,4.12516575]
[1641246842628,8.8422,169.71,169.62,4.38516575]
[1641246843555,9.1022,169.71,169.62,4.38516575]
[1641246843756,9.1022,169.71,169.63,8.8415]
[1641246843955,9.1022,169.71,169.63,0.5]
[1641246844357,9.1022,169.71,169.62,4.38516575]
[1641246845361,9.1022,169.71,169.62,2.0708]
[1641246845562,9.1022,169.71,169.62,0.76]
[1641246845960,9.1022,169.71,169.61,24.6604]
[1641246846561,9.1022,169.71,169.61,26.98493574]
[1641246847161,9.6022,169.71,169.61,2.82453574]
[1641246849062,9.6022,169.71,169.61,0.5]
[1641246849260,18.1622,169.71,169.61,0.5]
[1641246849462,18.1622,169.71,169.58,47.4065]
[1641246849663,18.1622,169.71,169.58,23.9092]
[1641246849860,95.1424,169.71,169.58,23.9092]
[1641246850060,95.1424,169.71,169.58,26.27236522]
[1641246851361,95.1424,169.71,169.58,23.9092]
[1641246851563,95.1424,169.71,169.58,0.5]
[1641246851764,8.8453,169.64,169.58,0.5]
[1641246851963,8.8453,169.64,169.56,9.6051]
[1641246852366,8.8453,169.64,169.57,2.22614286]
[1641246852665,8.8453,169.64,169.57,2.48614286]
[1641246852863,8.8453,169.64,169.57,2.98614286]
[1641246853663,8.8453,169.64,169.57,2.72614286]
[1641246854564,8.8448,169.65,169.57,12.99743654]
[1641246854965,1.2381,169.67,169.57,13.25743654]
[1641246855166,1.4981,169.67,169.57,13.25743654]
[1641246855666,1.4981,169.67,169.58,24.8466]
[1641246855866,8.8447,169.65,169.58,25.3466]
[1641246856065,8.8447,169.65,169.58,26.77329368]
[1641246856870,9.1047,169.65,169.58,26.77329368]
[1641246857972,9.1047,169.65,169.58,27.03329368]
[1641246859071,9.1047,169.65,169.58,26.77329368]
[1641246859470,9.1047,169.65,169.58,27.03329368]
[1641246860072,9.1047,169.65,169.58,26.77329368]
[1641246863780,9.1047,169.65,169.58,1.92669368]
[1641246863977,9.1047,169.65,169.58,1.42669368]
[1641246864379,9.1047,169.65,169.57,3.55134286]
[1641246865382,9.1047,169.65,169.57,4.05134286]
[1641246869284,9.1047,169.65,169.57,3.55134286]
[1641246869484,9.1047,169.65,169.57,2.22614286]
[1641246870684,18.1647,169.65,169.5,1.42669368]
[1641246870884,95.6203,169.64,169.54,0.5]
[1641246871084,8.8481,169.59,169.54,0.5]
[1641246871484,9.1081,169.59,169.5,3.17439368]
[1641246871684,9.1081,169.59,169.51,2.88141965]
[1641246871884,9.1081,169.59,169.51,3.38141965]
[1641246873085,9.1081,169.59,169.51,26.29811965]
[1641246873687,8.8472,169.6,169.51,26.29811965]
[1641246873888,1.327,169.61,169.52,1.42669368]
[1641246874087,0.26,169.6,169.52,1.42669368]
[1641246874288,0.26,169.6,169.52,2.18669368]
[1641246874487,23.4464,169.62,169.52,3.46419368]
[1641246874690,23.4464,169.62,169.53,24.88549368]
[1641246874887,23.4464,169.62,169.53,25.38549368]
[1641246875089,23.4464,169.62,169.53,25.64549368]
[1641246875689,8.8466,169.61,169.53,34.49209368]
[1641246876088,9.1066,169.61,169.53,34.49209368]
[1641246877025,9.1066,169.61,169.53,33.0654]
[1641246877224,23.1864,169.62,169.53,33.0654]
[1641246877225,73.6357,169.64,169.53,33.0654]
[1641246877430,72.3558,169.64,169.54,1.42669368]
[1641246877643,1.2603,169.69,169.54,9.98669368]
[1641246877833,23.973,169.68,169.55,24.242]
[1641246878025,2.5503,169.69,169.56,23.7784484]
[1641246878227,1.29,169.69,169.58,2.22443968]
[1641246878426,135.3261,169.7,169.58,2.72443968]
[1641246878628,135.3261,169.7,169.61,8.8423]
[1641246878827,135.3261,169.7,169.61,9.3423]
[1641246879026,135.5861,169.7,169.61,9.6023]
[1641246881131,135.5861,169.7,169.61,0.5]
[1641246881329,135.5861,169.7,169.6,0.5]
[1641246881733,136.0861,169.7,169.58,2.22443968]
[1641246881934,136.0861,169.7,169.58,2.72443968]
[1641246882635,137.4392,169.7,169.58,2.72443968]
[1641246882836,137.4392,169.7,169.59,24.4062]
[1641246883237,137.4392,169.7,169.59,26.1964]
[1641246888769,145.9992,169.7,169.59,0.5]
[1641246888967,145.9992,169.7,169.55,24.97]
[1641246888968,153.2172,169.7,169.55,24.97]
[1641246889167,153.2172,169.7,169.55,1.3394]
[1641246889369,153.2172,169.7,169.55,0.5]
[1641246889767,153.2172,169.7,169.55,3.05341486]
[1641246889967,154.64389368,169.7,169.55,3.05341486]
[1641246890169,156.22300825,169.7,169.55,3.05341486]
[1641246890369,156.22300825,169.7,169.55,2.55341486]
[1641246893072,156.22300825,169.7,169.53,24.8683]
[1641246893973,1.57911457,169.69,169.54,2.9355336]
[1641246894171,8.8485,169.62,169.54,2.9355336]
[1641246894375,9.3485,169.62,169.54,2.9355336]
[1641246894571,9.6085,169.62,169.54,2.9355336]
[1641246900276,8.8485,169.62,169.54,2.9355336]
[1641246900476,8.8485,169.62,169.54,3.1955336]
[1641246901279,9.3485,169.62,169.54,3.1955336]
[1641246901479,9.3485,169.62,169.55,31.63387602]
[1641246901978,9.3485,169.62,169.55,31.89387602]
[1641246902179,9.3485,169.62,169.55,0.76]
[1641246902379,9.3485,169.62,169.55,0.26]
[1641246902578,9.3485,169.62,169.54,12.5418336]
[1641246902780,9.6085,169.62,169.54,12.5418336]
[1641246906584,0.76,169.62,169.54,12.5418336]
[1641246906784,1.3121,169.66,169.55,32.446]
[1641246907083,1.3121,169.66,169.56,1.3117]
[1641246907287,132.6553,169.7,169.56,1.3117]
[1641246907486,104.3107,169.7,169.57,8.56]
[1641246907685,79.5048,169.7,169.62,8.8421]
[1641246907887,79.5048,169.7,169.63,2.59364898]
[1641246908089,79.5048,169.7,169.63,2.85364898]
[1641246908287,79.5048,169.7,169.63,3.35364898]
[1641246908889,79.7648,169.7,169.63,3.35364898]
[1641246909087,0.26,169.7,169.63,3.35364898]
[1641246909588,8.8421,169.7,169.63,3.35364898]
[1641246909792,9.1021,169.7,169.63,3.35364898]
[1641246913993,9.1021,169.7,169.63,3.09364898]
[1641246914196,9.1021,169.7,169.63,0.5]
[1641246914420,9.1021,169.7,169.62,25.9804]
[1641246914795,9.1021,169.7,169.62,24.7434]
[1641246914996,9.1021,169.7,169.62,0.5]
[1641246915396,9.1021,169.7,169.6,12.48083043]
[1641246915595,9.1021,169.7,169.6,9.6027]
[1641246915798,9.1021,169.7,169.6,0.5]
[1641246916000,9.6021,169.7,169.6,0.5]
[1641246916401,9.6021,169.7,169.58,23.2073]
[1641246916597,9.6021,169.7,169.58,25.93473254]
[1641246916798,10.8651,169.7,169.58,25.93473254]
[1641246916999,10.8651,169.7,169.58,26.19473254]
[1641246917398,10.8651,169.7,169.58,25.69473254]
[1641246917898,10.8651,169.7,169.59,1.2385]
[1641246918802,10.8651,169.7,169.59,1.7385]
[1641246919000,10.8651,169.7,169.59,1.2385]
[1641246919200,10.8651,169.7,169.59,1.7385]
[1641246919399,10.8651,169.7,169.59,1.2385]
[1641246919601,10.8651,169.7,169.59,1.7385]
[1641246925830,10.6051,169.7,169.59,1.7385]
[1641246926031,10.1051,169.7,169.59,1.7385]
[1641246926231,10.1051,169.7,169.59,10.5821]
[1641246926432,10.1051,169.7,169.6,22.7359]
[1641246926831,10.1051,169.7,169.6,23.2359]
[1641246927032,10.3651,169.7,169.6,22.7359]
[1641246927232,10.8651,169.7,169.6,22.7359]
[1641246927434,10.3651,169.7,169.6,22.7359]
[1641246928235,10.3651,169.7,169.6,22.9959]
[1641246928637,10.3651,169.7,169.61,1.2341]
[1641246929139,10.3651,169.7,169.61,1.4941]
[1641246929641,8.8421,169.7,169.61,10.3366]
[1641246929838,29.4757,169.73,169.62,1.42669368]
[1641246929839,8.8411,169.73,169.62,1.42669368]
[1641246930041,102.07741457,169.79,169.64,26.61908258]
[1641246930237,1.57911457,169.79,169.65,24.671]
[1641246930539,10.13911457,169.82,169.66,8.56]
[1641246930737,78.9957,169.81,169.66,9.9084]